fUST/lending_fUST_20250702
["ID","MTS","AMOUNT","RATE_DAILY","PERIOD"]
[368981702,1751423443549,-553.01,0.00021792,2]
[368981703,1751423443559,-644.11,0.00021792,2]
[368981704,1751423443568,-491.62336807,0.00021792,2]
[368981705,1751423443577,-168.0,0.00021916,2]
[368981706,1751423443586,-150.16164885,0.00021918,2]
[368981707,1751423443595,-500.0,0.00021946,2]
[368981708,1751423443605,-924.7,0.00021963,2]
[368981709,1751423443615,-4045.84,0.00022,7]
[368981710,1751423443624,-507.61,0.00022,7]
[368981711,1751423443633,-473.75,0.00022056,3]
[368981712,1751423443643,-1715.78,0.00022064,2]
[368981713,1751423443652,-460.0,0.00022064,2]
[368981714,1751423443661,-500.34,0.00022064,2]
[368981715,1751423443671,-656.08,0.00022064,2]
[368981716,1751423443680,-460.0,0.00022065,2]
[368981717,1751423443689,-1371.62,0.00022065,2]
[368981718,1751423443699,-737.22,0.00022065,2]
[368981719,1751423443709,-460.0,0.00022065,2]
[368981720,1751423443721,-1052.09,0.00022065,2]
[368981721,1751423443730,-1205.79,0.00022065,2]
[368981722,1751423443740,-553.01,0.00022066,2]
[368981723,1751423443750,-644.11,0.00022066,2]
[368981724,1751423443767,-168.0,0.00022067,2]
[368981725,1751423443777,-924.7,0.00022237,2]
[368981726,1751423443787,-168.0,0.00022291,2]
[368981727,1751423443796,-1715.78,0.00022338,2]
[368981728,1751423443805,-460.0,0.00022338,2]
[368981729,1751423443815,-500.34,0.00022338,2]
[368981730,1751423443825,-656.08,0.00022338,2]
[368981731,1751423443835,-460.0,0.00022339,2]
[368981732,1751423443845,-1371.62,0.00022339,2]
[368981733,1751423443855,-737.22,0.00022339,2]
[368981734,1751423443864,-460.0,0.00022339,2]
[368981735,1751423443874,-1052.09,0.00022339,2]
[368981736,1751423443883,-1205.79,0.00022339,2]
[368981737,1751423443893,-553.01,0.0002234,2]
[368981738,1751423443903,-644.11,0.0002234,2]
[368981739,1751423443912,-1439.5580577,0.0002235,2]
[368981740,1751423443921,-168.0,0.0002245,2]
[368981741,1751423443930,-207.4,0.00022474,2]
[368981742,1751423443939,-5000.0,0.00022474,2]
[368981743,1751423443949,-690.642,0.00022474,2]
[368981744,1751423443958,-155.258224,0.00022474,2]
[368981745,1751423443967,-500.0,0.00022474,2]
[368981746,1751423443977,-500.0,0.00022474,2]
[368981747,1751423443986,-500.0,0.00022474,2]
[368981748,1751423443996,-500.0,0.00022474,2]
[368981749,1751423444004,-500.0,0.00022474,2]
[368981750,1751423444013,-500.0,0.00022474,2]
[368981751,1751423444022,-500.0,0.00022474,2]
[368981752,1751423444032,-500.0,0.00022474,2]
[368981753,1751423444040,-500.0,0.00022474,2]
[368981754,1751423444050,-500.0,0.00022474,2]
[368981755,1751423444060,-500.0,0.00022474,2]
[368981756,1751423444069,-500.0,0.00022474,2]
[368981757,1751423444077,-500.0,0.00022474,2]
[368981758,1751423444087,-500.0,0.00022474,2]
[368981759,1751423444096,-500.0,0.00022474,2]
[368981760,1751423444106,-902.92971106,0.00022494,2]
[368981761,1751423444115,-1000.0,0.000225,2]
[368981762,1751423444124,-1000.0,0.000225,2]
[368981763,1751423444133,-1000.0,0.000225,2]
[368981764,1751423444142,-1102.87,0.000225,2]
[368981765,1751423444151,-168.0,0.00022504,2]
[368981766,1751423444161,-924.7,0.00022511,2]
[368981767,1751423444170,-716.195754,0.00022529,2]
[368981768,1751423444179,-566.0,0.00022534,2]
[368981769,1751423444188,-742.6949969,0.00022584,2]
[368981770,1751423444198,-176.502852,0.00022603,2]
[368981771,1751423444207,-1715.78,0.00022612,2]
[368981772,1751423444216,-460.0,0.00022612,2]
[368981773,1751423444225,-500.34,0.00022612,2]
[368981774,1751423444235,-656.08,0.00022612,2]
[368981775,1751423444244,-460.0,0.00022613,2]
[368981776,1751423444253,-1371.62,0.00022613,2]
[368981777,1751423444262,-737.22,0.00022613,2]
[368981778,1751423444271,-460.0,0.00022613,2]
[368981779,1751423444281,-1052.09,0.00022613,2]
[368981780,1751423444290,-1205.79,0.00022613,2]
[368981781,1751423444299,-553.01,0.00022614,2]
[368981782,1751423444309,-644.11,0.00022614,2]
[368981783,1751423444319,-770.17471178,0.00022639,2]
[368981784,1751423444327,-168.0,0.00022639,2]
[368981785,1751423444337,-160.0,0.00022674,3]
[368981786,1751423444347,-798.67117612,0.00022694,2]
[368981787,1751423444356,-566.0,0.00022706,2]
[368981788,1751423444367,-165.48870318,0.00022749,2]
[368981789,1751423444377,-924.7,0.00022785,2]
[368981790,1751423444387,-491.19440922,0.0002284,2]
[368981791,1751423444396,-1715.78,0.00022886,2]
[368981792,1751423444406,-460.0,0.00022886,2]
[368981793,1751423444415,-500.34,0.00022886,2]
[368981794,1751423444424,-656.08,0.00022886,2]
[368981795,1751423444434,-414.67627334,0.00022887,2]
[368981796,1751423444443,-1371.62,0.00022887,2]
[368981797,1751423444452,-737.22,0.00022887,2]
[368981798,1751423444462,-460.0,0.00022887,2]
[368981799,1751423444471,-1052.09,0.00022887,2]
[368981800,1751423444480,-1205.79,0.00022887,2]
[368981801,1751423444489,-553.01,0.00022888,2]
[368981802,1751423444499,-644.11,0.00022888,2]
[368981803,1751423444509,-48224.83153581,0.0002299,2]
[368981804,1751423444518,-1000.0,0.00023,2]
[368981805,1751423444527,-1000.0,0.00023,2]
[368981806,1751423444537,-1000.0,0.00023,2]
[368981807,1751423444546,-1000.0,0.00023,2]
[368981808,1751423444555,-1000.0,0.00023,2]
[368981809,1751423444565,-1000.0,0.00023,2]
[368981810,1751423444574,-1000.0,0.00023,2]
[368981811,1751423444583,-1000.0,0.00023,2]
[368981812,1751423444592,-1000.0,0.00023,2]
[368981813,1751423444601,-5000.0,0.00023022,2]
[368981814,1751423444618,-924.7,0.00023059,2]
[368981815,1751423444632,-1715.78,0.0002316,2]
[368981816,1751423444641,-460.0,0.0002316,2]
[368981817,1751423444651,-500.34,0.0002316,2]
[368981818,1751423444660,-656.08,0.0002316,2]
[368981819,1751423444670,-1371.62,0.00023161,2]
[368981820,1751423444680,-737.22,0.00023161,2]
[368981821,1751423444690,-519.33265808,0.00023161,2]
[368981822,1751423444699,-1052.09,0.00023161,2]
[368981823,1751423444710,-1205.79,0.00023161,2]
[368981824,1751423444722,-553.01,0.00023162,2]
[368981825,1751423444732,-644.11,0.00023162,2]
[368981826,1751423444742,-535.92,0.000232,7]
[368981827,1751423444752,-366.4191338,0.00023233,2]
[368981828,1751423444764,-366.4191338,0.00023233,2]
[368981829,1751423444773,-366.4191338,0.00023233,2]
[368981830,1751423444783,-366.4191338,0.00023233,2]
[368981831,1751423444794,-366.4191338,0.00023233,2]
[368981832,1751423444805,-366.4191338,0.00023233,2]
[368981833,1751423444814,-366.4191338,0.00023233,2]
[368981834,1751423444825,-366.4191338,0.00023233,2]
[368981835,1751423444835,-924.7,0.00023333,2]
[368981836,1751423444845,-1715.78,0.00023434,2]
[368981837,1751423444855,-596.46760026,0.00023434,2]
[368981838,1751423444865,-500.34,0.00023434,2]
[368981839,1751423444876,-656.08,0.00023434,2]
[368981840,1751423444886,-1371.83216586,0.00023435,2]
[368981841,1751423444896,-737.2673916,0.00023435,2]
[368981842,1751423444906,-1052.18514365,0.00023435,2]
[368981843,1751423444916,-1205.96541706,0.00023435,2]
[368981844,1751423444926,-553.02472163,0.00023436,2]
[368981845,1751423444936,-644.12464506,0.00023436,2]
[368981846,1751423444945,-1000.0,0.000235,2]
[368981847,1751423444955,-1000.0,0.000235,2]
[368981848,1751423444965,-1000.0,0.000235,2]
[368981849,1751423444974,-1000.0,0.000235,2]
[368981850,1751423444984,-1000.0,0.000235,2]
[368981851,1751423444993,-1000.0,0.000235,2]
[368981852,1751423445003,-1000.0,0.000235,2]
[368981853,1751423445012,-1000.0,0.000235,2]
[368981854,1751423445022,-1000.0,0.000235,2]
[368981855,1751423445032,-1000.0,0.000235,2]
[368981856,1751423445041,-159.8350114,0.00023507,2]
[368981857,1751423445051,-357.4601095,0.00023507,2]
[368981858,1751423445061,-580.6082651,0.00023507,2]
[368981859,1751423445071,-156.2995168,0.00023507,2]
[368981860,1751423445080,-159.3697675,0.00023507,2]
[368981861,1751423445090,-153.0,0.00023507,2]
[368981862,1751423445100,-575.597667,0.00023507,2]
[368981863,1751423445110,-159.3697675,0.00023507,2]
[368981864,1751423445121,-575.597667,0.00023507,2]
[368981865,1751423445130,-153.0,0.00023507,2]
[368981866,1751423445141,-159.3697675,0.00023507,2]
[368981867,1751423445151,-1159.3350193,0.00023507,2]
[368981868,1751423445161,-159.3697675,0.00023507,2]
[368981869,1751423445312,-5000.0,0.0002357,2]
[368981870,1751423445322,-1439.5580577,0.00023575,2]
[368981871,1751423445331,-507.61,0.000236,7]
[368981872,1751423445341,-151.0,0.000236,7]
[368981873,1751423445350,-924.86416625,0.00023607,2]
[368981874,1751423445360,-1715.84013758,0.00023708,2]
[368981875,1751423445369,-500.49464604,0.00023708,2]
[368981876,1751423445378,-656.0844152,0.00023708,2]
[368981877,1751423445388,-525.91546143,0.00023768,2]
[368981878,1751423445397,-4045.84,0.000238,7]
[368981879,1751423445407,-215.0738,0.00023843,2]
[368981880,1751423445416,-525.91546143,0.00023868,2]
[368981881,1751423445426,-827.78593142,0.00023888,2]
[368981882,1751423445436,-3855.15635464,0.000239,2]
[368981883,1751423445446,-160.0,0.00023942,4]
[368981884,1751423445455,-525.91546143,0.00023968,2]
[368981885,1751423445465,-1000.0,0.00024,2]
[368981886,1751423445474,-1000.0,0.00024,2]
[368981887,1751423445483,-1000.0,0.00024,2]
[368981888,1751423445495,-1000.0,0.00024,2]
[368981889,1751423445505,-1000.0,0.00024,2]
[368981891,1751423445514,-1000.0,0.00024,2]
[368981892,1751423445524,-1000.0,0.00024,2]
[368981893,1751423445534,-1000.0,0.00024,2]
[368981894,1751423445544,-1000.0,0.00024,2]
[368981895,1751423445553,-1000.0,0.00024,2]
[368981896,1751423445562,-1000.0,0.00024,2]
[368981897,1751423445572,-1000.0,0.00024,2]
[368981898,1751423445581,-1000.0,0.00024,2]
[368981899,1751423445591,-1000.0,0.00024,2]
[368981900,1751423445600,-524.6887252,0.00024,3]
[368981901,1751423445609,-524.6887252,0.00024,3]
[368981902,1751423445620,-331.77269546,0.00024,14]
[368981903,1751423445630,-215.04179405,0.00024,7]
[368981904,1751423445639,-525.91546143,0.00024068,2]
[368981905,1751423445648,-154.6589187,0.00024078,2]
[368981906,1751423445658,-525.91546143,0.00024168,2]
[368981907,1751423445667,-366.4191338,0.00024192,2]
[368981908,1751423445677,-366.4191338,0.00024192,2]
[368981909,1751423445687,-366.4191338,0.00024192,2]
[368981910,1751423445697,-366.4191338,0.00024192,2]
[368981911,1751423445707,-366.4191338,0.00024192,2]
[368981912,1751423445721,-366.4191338,0.00024192,2]
[368981913,1751423445730,-359.0544178,0.00024192,2]
[368981914,1751423445740,-670.59059892,0.00024266,2]
[368981915,1751423445750,-525.91546143,0.00024268,2]
[368981916,1751423445761,-151.0,0.000243,5]
[368981917,1751423445771,-2608.85621744,0.00024321,2]
[368981918,1751423445783,-525.91546143,0.00024368,2]
[368981919,1751423445792,-525.91546143,0.00024468,2]
[368981920,1751423445802,-2608.85621744,0.00024517,2]
[368981921,1751423445812,-205.823182,0.0002455,2]
[368981922,1751423445821,-525.91546143,0.00024568,2]
[368981923,1751423445833,-212.8386663,0.00024636,7]
[368981924,1751423445842,-525.91546143,0.00024668,2]
[368981925,1751423445852,-704.446604,0.00024699,4]
[368981926,1751423445862,-212.17115466,0.000247,2]
[368981927,1751423445874,-2676.70684912,0.000247,2]
[368981928,1751423445883,-1000.0,0.000247,2]
[368981929,1751423445893,-1000.0,0.000247,2]
[368981930,1751423445902,-1000.0,0.000247,2]
[368981931,1751423445912,-1000.0,0.000247,2]
[368981932,1751423445921,-1000.0,0.000247,2]
[368981933,1751423445931,-1000.0,0.000247,2]
[368981934,1751423445942,-1000.0,0.000247,2]
[368981935,1751423445951,-1000.0,0.000247,2]
[368981936,1751423445960,-1000.0,0.000247,2]
[368981937,1751423445969,-1000.0,0.000247,2]
[368981938,1751423445979,-585.51,0.000247,2]
[368981939,1751423445987,-370000.0,0.000247,2]
[368981940,1751423445997,-525.91546143,0.00024768,2]
[368981941,1751423446006,-369.16,0.0002479,10]
[368981942,1751423446016,-307.64,0.0002479,10]
[368981944,1751423446025,-150.0,0.00024796,2]
[368981945,1751423446034,-9665.44,0.000248,2]
[368981946,1751423446044,-762.66468537,0.000248,2]
[368981947,1751423446053,-1439.5580577,0.000248,2]
[368981948,1751423446062,-983.18670126,0.000248,2]
[368981949,1751423446071,-983.1867012,0.00024828,2]
[368981950,1751423446081,-170.0,0.00024854,2]
[368981951,1751423446090,-983.1867012,0.00024856,2]
[368981952,1751423446099,-407.852,0.00024864,2]
[368981953,1751423446108,-525.91546143,0.00024868,2]
[368981954,1751423446118,-566.0,0.00024872,2]
[368981955,1751423446127,-150.69802767,0.00024873,2]
[368981956,1751423446136,-1000.0,0.00024876,2]
[368981957,1751423446146,-1000.0,0.00024876,2]
[368981958,1751423446156,-1000.0,0.00024876,2]
[368981959,1751423446166,-1000.0,0.00024876,2]
[368981960,1751423446175,-1000.0,0.00024876,2]
[368981961,1751423446184,-533.27159763,0.00024876,2]
[368981962,1751423446194,-983.1867012,0.00024884,2]
[368981963,1751423446204,-62435.9333184,0.00024899,7]
[368981964,1751423446290,-1476.49,0.00017407,2]
[368981965,1751423446300,-1476.49,0.00017681,2]
[368981966,1751423446309,-1476.49,0.00017955,2]
[368981967,1751423446319,-1476.49,0.00018229,2]
[368981968,1751423446329,-1476.49,0.00018503,2]
[368981969,1751423446338,-1476.49,0.00018777,2]
[368981970,1751423446348,-491.19440922,0.00023946,2]
[368981971,1751423446358,-3728.56179945,0.00024899,7]
[368981972,1751423446704,-1476.49,0.00019051,2]
[368981973,1751423446717,-1476.49,0.00019325,2]
[368981974,1751423446727,-1476.49,0.00019599,2]
[368981975,1751423446737,-1476.49,0.00019873,2]
[368981976,1751423446747,-1476.49,0.00020147,2]
[368981977,1751423446758,-1476.49,0.00020421,2]
[368981978,1751423446769,-1476.49,0.00020695,2]
[368981979,1751423446779,-1476.49,0.00020969,2]
[368981980,1751423446791,-1476.49,0.00021243,2]
[368981981,1751423446801,-366.4191338,0.00023233,2]
[368981982,1751423446812,-55941.75788215,0.00024899,7]
[368981983,1751423446821,-151.0,0.000249,2]
[368981984,1751423446831,-152.209071,0.000249,7]
[368981985,1751423446841,-152.605132,0.000249,7]
[368981986,1751423446851,-83061.60001895,0.000249,2]
[368981987,1751423447088,-460.0,0.00017406,2]
[368981988,1751423447099,-56.95631384,0.00021517,2]
[368981991,1751423530479,285.172363,0.00013699,2]
[368981992,1751423587422,17512.7594484,0.00016491,2]
[368981994,1751423622528,5000.0,0.000168,2]
[368981996,1751423637803,4596.19577797,0.000168,2]
[368981997,1751423664614,-392.0,0.000168,2]
[368981998,1751423673054,1100.0,0.00025145,60]
[368982001,1751423832051,5000.0,0.0001833,6]
[368982002,1751423847346,783.63673766,0.0001833,6]
[368982003,1751423861954,-157.52242578,0.00017131,2]
[368982004,1751423863560,-179.94715862,0.00017131,2]
[368982005,1751423914686,-244.79502147,0.00016454,2]
[368982006,1751423917455,-168.15533092,0.00016454,2]
[368982007,1751423925614,187.91693268,0.00016355,2]
[368982008,1751423927082,-87.04964761,0.00016454,2]
[368982009,1751423927104,-500.0,0.00016454,2]
[368982010,1751423927124,-154.61500719,0.00016454,2]
[368982011,1751423927144,-500.0,0.00016454,2]
[368982012,1751423927165,-24742.3353452,0.00016455,2]
[368982013,1751423930032,4247.42022034,0.000164,2]
[368982014,1751424008335,-1200.0,0.00016453,2]
[368982015,1751424008357,-300.0,0.00016453,2]
[368982016,1751424008377,-300.0,0.00016453,2]
[368982017,1751424008398,-300.0,0.00016453,2]
[368982018,1751424008418,-460.0,0.00016454,2]
[368982019,1751424008438,-461.898222,0.00016454,2]
[368982020,1751424008460,-471.00179816,0.00016454,2]
[368982021,1751424008480,-461.85081929,0.00016454,2]
[368982022,1751424008501,-467.62568133,0.00016454,2]
[368982023,1751424008521,-460.39097845,0.00016454,2]
[368982024,1751424008542,-357.29341718,0.00016454,2]
[368982025,1751424008562,-461.80989663,0.00016454,2]
[368982026,1751424008584,-157.6646548,0.00016455,2]
[368982027,1751424008605,-294.46453216,0.00016728,2]
[368982028,1751424075190,5092.8832148,0.00016331,2]
[368982029,1751424076561,-460.0,0.00016454,2]
[368982030,1751424076583,-462.40186228,0.00016454,2]
[368982031,1751424076604,-462.61241284,0.00016454,2]
[368982032,1751424076626,-461.09196353,0.00016454,2]
[368982033,1751424076648,-460.0,0.00016454,2]
[368982034,1751424076670,-460.0,0.00016454,2]
[368982035,1751424076691,-172.52004088,0.00016728,2]
[368982036,1751424076712,-468.05073479,0.00016728,2]
[368982037,1751424076737,-415.32298568,0.00016728,2]
[368982039,1751424124307,187.91693267,0.00016354,2]
[368982040,1751424146890,-460.0,0.00016454,2]
[368982041,1751424146911,-470.21940736,0.00016454,2]
[368982042,1751424146932,-354.11628424,0.00016454,2]
[368982043,1751424146955,-460.0,0.00016454,2]
[368982044,1751424146976,-463.51969765,0.00016454,2]
[368982045,1751424146996,-53.44823165,0.00016728,2]
[368982046,1751424147021,-460.0,0.00016728,2]
[368982047,1751424147043,-400.6963791,0.00016728,2]
[368982048,1751424189800,2337.0,0.00016,2]
[368982050,1751424217391,-504.71965073,0.00016454,2]
[368982051,1751424217415,-460.0,0.00016454,2]
[368982052,1751424217439,-59.3036209,0.00016728,2]
[368982053,1751424217461,-355.97672837,0.00016728,2]
[368982054,1751424287794,-460.0,0.00016454,2]
[368982055,1751424287820,-460.0,0.00016454,2]
[368982056,1751424287841,-470.05178441,0.00016454,2]
[368982057,1751424287862,-460.0,0.00016454,2]
[368982058,1751424287884,-104.02327163,0.00016728,2]
[368982059,1751424287905,-279.03023832,0.00016728,2]
[368982060,1751424287927,-291.89470564,0.00016728,2]
[368982061,1751424358506,-460.0,0.00016454,2]
[368982062,1751424358529,-460.0,0.00016454,2]
[368982063,1751424358552,-460.0,0.00016454,2]
[368982064,1751424358574,-9.74113575,0.00016728,2]
[368982065,1751424358595,-460.0,0.00016728,2]
[368982066,1751424358615,-460.0,0.00016728,2]
[368982067,1751424358636,-460.0,0.00016728,2]
[368982068,1751424432144,-150.0,0.00016902,2]
[368982069,1751424432170,-460.0,0.00017002,2]
[368982070,1751424432193,-460.0,0.00017002,2]
[368982071,1751424432214,-460.0,0.00017002,2]
[368982072,1751424432234,-672.54888193,0.00017123,2]
[368982073,1751424432258,-300.0,0.00017131,2]
[368982074,1751424432277,-502.40031963,0.00017132,2]
[368982075,1751424432300,-302.26384272,0.00017132,2]
[368982076,1751424494324,-732.27,0.00016454,2]
[368982077,1751424494346,-460.0,0.00016454,2]
[368982078,1751424494370,-732.27,0.00016728,2]
[368982079,1751424494394,-210.46,0.00016728,2]
[368982080,1751424548124,-460.0,0.00016454,2]
[368982081,1751424548151,-460.0,0.00016454,2]
[368982082,1751424548177,-460.0,0.00016454,2]
[368982083,1751424548203,-460.0,0.00016454,2]
[368982084,1751424548229,-460.0,0.00016454,2]
[368982085,1751424548256,-249.54,0.00016728,2]
[368982086,1751424548282,-386.79730171,0.00016728,2]
[368982087,1751424554783,205.8231831,0.00016288,2]
[368982088,1751424573094,-450.8,0.00016454,2]
[368982089,1751424574529,-9.2,0.00016454,2]
[368982090,1751424574552,-73.20269829,0.00016728,2]
[368982091,1751424590049,299.277967,0.00013699,2]
[368982092,1751424592771,64.0635299,0.00016454,2]
[368982130,1751424632318,-395.9364701,0.00016454,2]
[368982132,1751424632328,-81.74420903,0.00016454,2]
[368982134,1751424632339,-378.25579097,0.00016454,2]
[368982136,1751424632349,-460.0,0.00016728,2]
[368982138,1751424632358,-150.0,0.00016902,2]
[368982140,1751424632367,-732.27,0.00017002,2]
[368982141,1751424632377,-460.0,0.00017002,2]
[368982142,1751424632386,-460.0,0.00017002,2]
[368982143,1751424632395,-460.0,0.00017002,2]
[368982144,1751424632405,-236.0,0.00017131,2]
[368982145,1751424632414,-197.73615728,0.00017132,2]
[368982146,1751424632423,-500.0,0.00017132,2]
[368982147,1751424632433,-4.22681562,0.00017132,2]
[368982149,1751424632445,-635.50051138,0.00017132,2]
[368982151,1751424632455,-219.08350211,0.00017132,2]
[368982152,1751424632464,-500.0,0.00017132,2]
[368982154,1751424632476,-500.0,0.00017132,2]
[368982156,1751424632485,-556.91117905,0.00017132,2]
[368982157,1751424632495,-156.63162787,0.00017133,2]
[368982158,1751424632507,-382.98295722,0.00017133,2]
[368982159,1751424632516,-407.53598976,0.00017133,2]
[368982160,1751424632527,-293.42952718,0.00017133,2]
[368982161,1751424632537,-170.60719226,0.00017133,2]
[368982163,1751424632547,-462.62730258,0.00017133,2]
[368982164,1751424632556,-17.60794317,0.00017133,2]
[368982166,1751424632568,-444.8458366,0.00017133,2]
[368982168,1751424632578,-460.0,0.00017133,2]
[368982170,1751424632587,-538.96,0.00017133,2]
[368982172,1751424632597,-414.28606742,0.00017133,2]
[368982174,1751424632609,-472.28808125,0.00017133,2]
[368982176,1751424632619,-469.12373985,0.00017133,2]
[368982178,1751424632629,-460.0,0.00017133,2]
[368982180,1751424632639,-460.0,0.00017133,2]
[368982182,1751424632648,-435.80627488,0.00017133,2]
[368982185,1751424632660,-37.7218598,0.00017133,2]
[368982187,1751424632669,-583.7877189,0.00017133,2]
[368982189,1751424632678,-460.0,0.00017133,2]
[368982191,1751424632687,-460.0,0.00017276,2]
[368982193,1751424632697,-732.27,0.00017276,2]
[368982195,1751424632706,-460.0,0.00017276,2]
[368982197,1751424632715,-460.0,0.00017276,2]
[368982199,1751424632726,-460.0,0.00017276,2]
[368982201,1751424632735,-460.0,0.00017303,2]
[368982203,1751424632744,-460.0,0.00017303,2]
[368982205,1751424632753,-460.0,0.00017303,2]
[368982207,1751424632763,-460.0,0.00017303,2]
[368982209,1751424632772,-467.14359298,0.00017303,2]
[368982211,1751424632783,-463.13428083,0.00017303,2]
[368982213,1751424632794,-460.0,0.00017303,2]
[368982215,1751424632803,-460.0,0.00017303,2]
[368982217,1751424632812,-543.11,0.00017303,2]
[368982219,1751424632822,-460.0,0.00017304,2]
[368982221,1751424632831,-460.0,0.00017304,2]
[368982223,1751424632840,-460.0,0.00017304,2]
[368982225,1751424632850,-460.0,0.00017304,2]
[368982227,1751424632860,-508.96,0.00017304,2]
[368982229,1751424632869,-128.87250749,0.00017304,2]
[368982785,1751424638479,-460.0,0.00016454,2]
[368982787,1751424638489,-460.0,0.00016728,2]
[368982790,1751424638499,-460.0,0.00017002,2]
[368982792,1751424638509,-460.0,0.00017276,2]
[368982794,1751424638519,-331.12749251,0.00017304,2]
[368982796,1751424638528,-460.0,0.00017304,2]
[368982798,1751424638537,-460.0,0.00017304,2]
[368982800,1751424638546,-460.0,0.00017304,2]
[368982802,1751424638555,-460.0,0.00017304,2]
[368982804,1751424638565,-460.0,0.00017304,2]
[368982806,1751424638575,-460.0,0.00017304,2]
[368982808,1751424638585,-460.0,0.00017304,2]
[368982810,1751424638596,-460.0,0.00017304,2]
[368982812,1751424638607,-460.0,0.00017304,2]
[368982814,1751424638617,-460.0,0.00017304,2]
[368982815,1751424638627,-460.0,0.00017305,2]
[368982831,1751424638764,-460.0,0.00017305,2]
[368982833,1751424638774,-286.52558948,0.00017305,2]
[368982835,1751424638784,-460.0,0.00017305,2]
[368982837,1751424638793,-460.0,0.00017305,2]
[368982839,1751424638803,-605.49,0.00017305,2]
[368982841,1751424638812,-460.0,0.00017305,2]
[368982843,1751424638821,-460.0,0.00017405,2]
[368982845,1751424638831,-460.0,0.00017405,2]
[368982847,1751424638840,-590.45,0.00017405,2]
[368982849,1751424638850,-465.8413118,0.00017405,2]
[368982851,1751424638859,-460.0,0.00017405,2]
[368982853,1751424638869,-460.0,0.00017405,2]
[368982855,1751424638878,-460.0,0.00017405,2]
[368982857,1751424638888,-465.0,0.00017405,2]
[368982859,1751424638899,-460.0,0.00017405,2]
[368982861,1751424638909,-460.0,0.00017405,2]
[368982863,1751424638918,-460.0,0.00017405,2]
[368982865,1751424638928,-465.87202488,0.00017405,2]
[368982867,1751424638937,-460.0,0.00017405,2]
[368982869,1751424638947,-460.0,0.00017405,2]
[368982871,1751424638957,-460.0,0.00017405,2]
[368982873,1751424638966,-460.0,0.00017405,2]
[368982875,1751424638976,-663.33,0.00017405,2]
[368982877,1751424638986,-460.0,0.00017405,2]
[368982879,1751424638995,-460.0,0.00017405,2]
[368982881,1751424639005,-460.0,0.00017405,2]
[368982883,1751424639014,-460.0,0.00017405,2]
[368982885,1751424639023,-460.0,0.00017405,2]
[368982887,1751424639033,-460.0,0.00017405,2]
[368982889,1751424639042,-460.0,0.00017405,2]
[368982891,1751424639052,-462.27514994,0.00017406,2]
[368982892,1751424639061,-460.0,0.00017406,2]
[368982893,1751424639071,-392.21343483,0.00017406,2]
[368982894,1751424639080,-460.0,0.00017406,2]
[368982895,1751424639090,-460.0,0.00017406,2]
[368982896,1751424639099,-460.0,0.00017406,2]
[368982897,1751424639109,-633.61,0.00017406,2]
[368982898,1751424639118,-460.0,0.00017406,2]
[368982899,1751424639128,-732.27,0.0001755,2]
[368982900,1751424639137,-460.0,0.0001755,2]
[368982901,1751424639147,-460.0,0.0001755,2]
[368982902,1751424639156,-460.0,0.0001755,2]
[368982903,1751424639168,-460.0,0.0001755,2]
[368982904,1751424639179,-473.75,0.00017571,3]
[368982905,1751424639188,-210.46605463,0.00017576,2]
[368982906,1751424639198,-460.0,0.00017577,2]